Workbook

Sheet GuV
B2: GuV (Gesamtkostenverfahren) | D2: 7.23 | E2: 8.23 | F2: 9.23 | G2: 10.23 | H2: 11.23 | I2: 12.23 | J2: 2023 6 Monate | K2: 1.24 | L2: 2.24 | M2: 3.24 | N2: 4.24 | O2: 5.24 | P2: 6.24 | Q2: 7.24 | R2: 8.24 | S2: 9.24 | T2: 10.24 | U2: 11.24 | V2: 12.24 | W2: 2024 | X2: 2025 | Y2: 2026
B3: in TEUR
B5: Umsatzerlöse | D5: =+SUM(D6:D7) -> 0.2 | E5: 0.4 | F5: 1.2 | G5: 2.1 | H5: 2.1 | I5: 2.1 | J5: 8.0 | K5: 5.8 | L5: 5.8 | M5: 5.8 | N5: 12.2 | O5: 14.4 | P5: 16.6 | Q5: 17.8 | R5: 17.8 | S5: 17.8 | T5: 17.8 | U5: 18.2 | V5: 19.5 | W5: 169.3 | X5: 727.3 | Y5: 1,609.7
B6: Software inkl. Dienstleistungen | D6: 0 | E6: 0 | F6: 0 | G6: 0 | H6: 0 | I6: 0 | J6: =+SUM(D6:I6) -> 0 | K6: 0 | L6: 0 | M6: 0 | N6: =+Umsatz!$E$9/9+(Umsatz!$E$5-Umsatz!$E$9)/9*0.5 -> 6.5 | O6: =+Umsatz!$E$9/9+(Umsatz!$E$5-Umsatz!$E$9)/9*0.75 -> 8.6 | P6: =+Umsatz!$E$9/9+(Umsatz!$E$5-Umsatz!$E$9)/9*1 -> 10.8 | Q6: =+Umsatz!$E$9/9+(Umsatz!$E$5-Umsatz!$E$9)/9*1.1 -> 11.7 | R6: =+Umsatz!$E$9/9+(Umsatz!$E$5-Umsatz!$E$9)/9*1.1 -> 11.7 | S6: =+Umsatz!$E$9/9+(Umsatz!$E$5-Umsatz!$E$9)/9*1.1 -> 11.7 | T6: =+Umsatz!$E$9/9+(Umsatz!$E$5-Umsatz!$E$9)/9*1.1 -> 11.7 | U6: =+Umsatz!$E$9/9+(Umsatz!$E$5-Umsatz!$E$9)/9*1.1 -> 11.7 | V6: =+Umsatz!$E$9/9+(Umsatz!$E$5-Umsatz!$E$9)/9*1.25 -> 13.0 | W6: =+SUM(K6:V6) -> 97.4 | X6: =+Umsatz!F5 -> 532.5 | Y6: =+Umsatz!G5 -> 1,293.8
B7: Sonstige Einzellösungen | D7: =+Umsatz!$D$14*0.025 -> 0.2 | E7: =+Umsatz!$D$14*0.05 -> 0.4 | F7: =+Umsatz!$D$14*0.15 -> 1.2 | G7: =+Umsatz!$D$14*0.25 -> 2.1 | H7: =+Umsatz!$D$14*0.25 -> 2.1 | I7: =+Umsatz!$D$14*0.25 -> 2.1 | J7: 8.0 | K7: =+Umsatz!$E$14*0.08 -> 5.8 | L7: =+Umsatz!$E$14*0.08 -> 5.8 | M7: =+Umsatz!$E$14*0.08 -> 5.8 | N7: =+Umsatz!$E$14*0.08 -> 5.8 | O7: =+Umsatz!$E$14*0.08 -> 5.8 | P7: =+Umsatz!$E$14*0.08 -> 5.8 | Q7: =+Umsatz!$E$14*0.085 -> 6.1 | R7: =+Umsatz!$E$14*0.085 -> 6.1 | S7: =+Umsatz!$E$14*0.085 -> 6.1 | T7: =+Umsatz!$E$14*0.085 -> 6.1 | U7: =+Umsatz!$E$14*0.09 -> 6.5 | V7: =+Umsatz!$E$14*0.09 -> 6.5 | W7: =+SUM(K7:V7) -> 71.9 | X7: =+Umsatz!F14 -> 194.8 | Y7: =+Umsatz!G14 -> 315.9
B9: Wareneinsatz | D9: =-0.119/1.19 -> -0.1 | E9: =+D9*1 -> -0.1 | F9: =+E9*1 -> -0.1 | G9: =-0.249/1.19 -> -0.2 | H9: -0.2 | I9: -0.2 | J9: =+SUM(D9:I9) -> -0.9 | K9: =-0.249/1.19*2 -> -0.4 | L9: =+K9*1 -> -0.4 | M9: =+L9 -> -0.4 | N9: =-0.249/1.19*3 -> -0.6 | O9: =+N9*1 -> -0.6 | P9: -0.6 | Q9: =-0.249/1.19*4 -> -0.8 | R9: -0.8 | S9: -0.8 | T9: =-0.249/1.19*5 -> -1.0 | U9: -1.0 | V9: -1.0 | W9: =+SUM(K9:V9) -> -8.8 | X9: =-0.249/1.19*10*12 -> -25.1 | Y9: =-0.249/1.19*20*12 -> -50.2
B11: Rohertrag | D11: =+D5+D9 -> 0.1 | E11: =+E5+E9 -> 0.3 | F11: 1.1 | G11: 1.9 | H11: 1.9 | I11: 1.9 | J11: 7.1 | K11: 5.3 | L11: 5.3 | M11: 5.3 | N11: 11.6 | O11: 13.8 | P11: 15.9 | Q11: 17.0 | R11: 17.0 | S11: 17.0 | T11: 16.8 | U11: 17.1 | V11: 18.4 | W11: 160.5 | X11: 702.2 | Y11: 1,559.4
B13: Personalaufwand | D13: =+SUM(D14:D15) -> 0 | E13: =+SUM(E14:E15) -> 0 | F13: 0 | G13: 0 | H13: 0 | I13: 0 | J13: 0 | K13: 0 | L13: 0 | M13: 0 | N13: 0 | O13: 0 | P13: -6.1 | Q13: -6.1 | R13: -12.2 | S13: -12.2 | T13: -12.2 | U13: -12.2 | V13: -12.2 | W13: -73.2 | X13: -432.4 | Y13: -957.1
B14: Löhne und Gehälter | D14: 0 | E14: 0 | F14: 0 | G14: 0 | H14: 0 | I14: 0 | J14: =+SUM(D14:I14) -> 0 | K14: 0 | L14: 0 | M14: 0 | N14: 0 | O14: 0 | P14: =-Personalplanung!$E$17/6/1.19/2 -> -5.1 | Q14: =-Personalplanung!$E$17/6/1.19/2 -> -5.1 | R14: =-Personalplanung!$E$17/6/1.19 -> -10.3 | S14: =-Personalplanung!$E$17/6/1.19 -> -10.3 | T14: =-Personalplanung!$E$17/6/1.19 -> -10.3 | U14: =-Personalplanung!$E$17/6/1.19 -> -10.3 | V14: =-Personalplanung!$E$17/6/1.19 -> -10.3 | W14: =+SUM(K14:V14) -> -61.5 | X14: =-Personalplanung!F17/1.19 -> -363.4 | Y14: =-Personalplanung!G17/1.19 -> -804.3
B15: Soziale Abgaben | D15: 0 | E15: 0 | F15: 0 | G15: 0 | H15: 0 | I15: 0 | J15: =+SUM(D15:I15) -> 0 | K15: 0 | L15: 0 | M15: 0 | N15: 0 | O15: 0 | P15: =+P14*0.19 -> -1.0 | Q15: -1.0 | R15: =+R14*0.19 -> -1.9 | S15: =+S14*0.19 -> -1.9 | T15: =+T14*0.19 -> -1.9 | U15: =+U14*0.19 -> -1.9 | V15: =+V14*0.19 -> -1.9 | W15: -11.7 | X15: =+X14*0.19 -> -69.0 | Y15: =+Y14*0.19 -> -152.8
B17: SBA | D17: =+SUM(D18:D32) -> -1.4 | E17: -0.8 | F17: -1.8 | G17: -1.0 | H17: -1.0 | I17: -2.0 | J17: -8.2 | K17: -1.4 | L17: -4.4 | M17: -1.4 | N17: -1.8 | O17: -1.9 | P17: -2.1 | Q17: -5.4 | R17: -2.4 | S17: -2.4 | T17: -2.4 | U17: -2.4 | V17: -2.5 | W17: -30.4 | X17: -79.3 | Y17: -154.4
B18: Abschreibungen | D18: =-Investitionen!$D$39/6 -> -0.1 | E18: =-Investitionen!$D$39/6 -> -0.1 | F18: =-Investitionen!$D$39/6 -> -0.1 | G18: =-Investitionen!$D$39/6 -> -0.1 | H18: =-Investitionen!$D$39/6 -> -0.1 | I18: =-Investitionen!$D$39/6 -> -0.1 | J18: =+SUM(D18:I18) -> -0.5 | K18: =-Investitionen!$E$39/12 -> -0.2 | L18: =-Investitionen!$E$39/12 -> -0.2 | M18: =-Investitionen!$E$39/12 -> -0.2 | N18: =-Investitionen!$E$39/12 -> -0.2 | O18: =-Investitionen!$E$39/12 -> -0.2 | P18: =-Investitionen!$E$39/12 -> -0.2 | Q18: =-Investitionen!$E$39/12 -> -0.2 | R18: =-Investitionen!$E$39/12 -> -0.2 | S18: =-Investitionen!$E$39/12 -> -0.2 | T18: =-Investitionen!$E$39/12 -> -0.2 | U18: =-Investitionen!$E$39/12 -> -0.2 | V18: =-Investitionen!$E$39/12 -> -0.2 | W18: =+SUM(K18:V18) -> -2.2 | X18: =-Investitionen!F39 -> -3.8 | Y18: =-Investitionen!G39 -> -5.5
B19: Transportkosten | D19: 0 | E19: 0 | F19: 0 | G19: 0 | H19: 0 | I19: 0 | J19: 0 | K19: 0 | L19: 0 | M19: 0 | N19: -0.1 | O19: -0.1 | P19: -0.1 | Q19: -0.1 | R19: -0.1 | S19: -0.1 | T19: -0.1 | U19: -0.1 | V19: -0.1 | W19: =+SUM(K19:V19) -> -0.5 | X19: =-0.05*12 -> -0.6 | Y19: =+X19*1.03 -> -0.6
B20: Raum- und Grundstücksaufwendungen | D20: 0 | E20: 0 | F20: 0 | G20: 0 | H20: 0 | I20: 0 | J20: 0 | K20: 0 | L20: 0 | M20: 0 | N20: 0 | O20: 0 | P20: 0 | Q20: 0 | R20: 0 | S20: 0 | T20: 0 | U20: 0 | V20: 0 | W20: 0 | X20: 0 | Y20: 0
B21: Wartung, Reparaturen und Instandhaltung | D21: 0 | E21: 0 | F21: 0 | G21: 0 | H21: 0 | I21: 0 | J21: 0 | K21: 0 | L21: 0 | M21: 0 | N21: 0 | O21: 0 | P21: 0 | Q21: 0 | R21: 0 | S21: 0 | T21: 0 | U21: 0 | V21: 0 | W21: 0 | X21: 0 | Y21: 0
B22: Versicherungen | D22: -0.1 | E22: -0.1 | F22: -0.1 | G22: -0.1 | H22: -0.1 | I22: -0.1 | J22: -0.6 | K22: -0.1 | L22: -0.1 | M22: -0.1 | N22: -0.1 | O22: -0.1 | P22: -0.1 | Q22: -0.1 | R22: -0.1 | S22: -0.1 | T22: -0.1 | U22: -0.1 | V22: -0.1 | W22: -1.2 | X22: =+V22*12*1.03 -> -1.2 | Y22: =+X22*1.03 -> -1.3
B23: Beiträge, Abgaben, Gebühren | D23: -0.3 | E23: =+D23 -> -0.3 | F23: =+E23 -> -0.3 | G23: -0.3 | H23: -0.3 | I23: -0.3 | J23: -1.5 | K23: =I23*1.03 -> -0.3 | L23: =+K23 -> -0.3 | M23: =+L23 -> -0.3 | N23: -0.3 | O23: -0.3 | P23: -0.3 | Q23: -0.3 | R23: -0.3 | S23: -0.3 | T23: -0.3 | U23: -0.3 | V23: -0.3 | W23: -3.1 | X23: =+V23*1.03*12 -> -3.2 | Y23: =+X23*1.03 -> -3.3
B24: Miete und Leasing | D24: 0 | E24: 0 | F24: 0 | G24: 0 | H24: 0 | I24: 0 | J24: 0 | K24: 0 | L24: 0 | M24: 0 | N24: 0 | O24: 0 | P24: 0 | Q24: 0 | R24: 0 | S24: 0 | T24: 0 | U24: 0 | V24: 0 | W24: 0 | X24: 0 | Y24: 0
B25: KFZ Kosten | D25: 0 | E25: 0 | F25: 0 | G25: 0 | H25: 0 | I25: 0 | J25: 0 | K25: 0 | L25: 0 | M25: 0 | N25: 0 | O25: 0 | P25: 0 | Q25: 0 | R25: 0 | S25: 0 | T25: 0 | U25: 0 | V25: 0 | W25: 0 | X25: -12.0 | Y25: =+X25*1.03 -> -12.4
B26: Messe-, Werbung- und Reisekosten | D26: 0 | E26: 0 | F26: 0 | G26: =-MAX(G5*0.05, 0.1) -> -0.1 | H26: =-MAX(H5*0.05, 0.1) -> -0.1 | I26: =-MAX(I5*0.05, 0.1) -> -0.1 | J26: -0.3 | K26: =-MAX(K5*0.05, 0.1) -> -0.3 | L26: -0.3 | M26: -0.3 | N26: -0.6 | O26: -0.7 | P26: -0.8 | Q26: -0.9 | R26: -0.9 | S26: -0.9 | T26: -0.9 | U26: -0.9 | V26: -1.0 | W26: -8.5 | X26: -36.4 | Y26: -80.5
B27: Betriebsbedarf | D27: =-0.059/1.19 -> -0.0 | E27: =+D27 -> -0.0 | F27: =+E27-1 -> -1.0 | G27: =-0.059/1.19-0.1 -> -0.1 | H27: =+G27 -> -0.1 | I27: =+H27-1 -> -1.1 | J27: -2.6 | K27: -0.2 | L27: =+K27 -> -0.2 | M27: =+L27 -> -0.2 | N27: -0.2 | O27: -0.2 | P27: -0.2 | Q27: -0.3 | R27: -0.3 | S27: -0.3 | T27: -0.3 | U27: -0.3 | V27: -0.3 | W27: -3.0 | X27: =-0.5*1.03*12 -> -6.2 | Y27: =+X27*1.03 -> -6.4
B28: sonstige Personalkosten | D28: 0 | E28: 0 | F28: 0 | G28: 0 | H28: 0 | I28: 0 | J28: 0 | K28: 0 | L28: -3.0 | M28: 0 | N28: 0 | O28: 0 | P28: 0 | Q28: -3.0 | R28: 0 | S28: 0 | T28: 0 | U28: 0 | V28: 0 | W28: -6.0 | X28: -6.0 | Y28: -30.0
B29: Kommunikation | D29: -0.1 | E29: =+D29 -> -0.1 | F29: =+E29 -> -0.1 | G29: -0.1 | H29: -0.1 | I29: -0.1 | J29: -0.3 | K29: =+I29*1.03 -> -0.1 | L29: =+K29 -> -0.1 | M29: =+L29 -> -0.1 | N29: -0.1 | O29: -0.1 | P29: -0.1 | Q29: -0.2 | R29: -0.2 | S29: -0.2 | T29: -0.2 | U29: -0.2 | V29: -0.2 | W29: -1.5 | X29: =+V29*1.03*12 -> -2.5 | Y29: =+X29*1.03 -> -2.5
B30: Rechts-, Beratungs- und Lizenzkosten | D30: =-0.3-Kapitalbedarf!D12/1000-Kapitalbedarf!D13/1000-Kapitalbedarf!D14/1000-Kapitalbedarf!D15/1000 -> -0.9 | E30: -0.3 | F30: =+E30 -> -0.3 | G30: -0.3 | H30: -0.3 | I30: -0.3 | J30: -2.4 | K30: =+I30*1.03 -> -0.3 | L30: =+K30 -> -0.3 | M30: =+L30 -> -0.3 | N30: -0.3 | O30: -0.3 | P30: -0.3 | Q30: -0.3 | R30: -0.3 | S30: -0.3 | T30: -0.3 | U30: -0.3 | V30: -0.3 | W30: -3.7 | X30: =+V30*1.03*12 -> -3.8 | Y30: =+X30*1.03 -> -3.9
B31: Forderungsverluste | D31: =-D5*0.005 -> -0.0 | E31: =-E5*0.005 -> -0.0 | F31: -0.0 | G31: -0.0 | H31: -0.0 | I31: -0.0 | J31: -0.0 | K31: =-K5*0.005 -> -0.0 | L31: -0.0 | M31: -0.0 | N31: -0.1 | O31: -0.1 | P31: -0.1 | Q31: -0.1 | R31: -0.1 | S31: -0.1 | T31: -0.1 | U31: -0.1 | V31: -0.1 | W31: -0.8 | X31: =-X5*0.005 -> -3.6 | Y31: -8.0
B32: übrige sonstige betr. Aufwendungen | J32: 0 | W32: 0
B34: EBIT | D34: =+D5+D9+D13+D17 -> -1.3 | E34: -0.5 | F34: -0.7 | G34: 0.8 | H34: 0.8 | I34: -0.2 | J34: -1.1 | K34: 3.9 | L34: 0.9 | M34: 3.9 | N34: 9.8 | O34: 11.8 | P34: 7.8 | Q34: 5.5 | R34: 2.4 | S34: 2.4 | T34: 2.2 | U34: 2.5 | V34: 3.8 | W34: 56.9 | X34: 190.5 | Y34: 448.0
B36: Finanzergebnis | D36: -0.0 | E36: -0.0 | F36: -0.0 | G36: -0.0 | H36: -0.0 | I36: -0.0 | J36: =+SUM(D36:I36) -> -0.1 | K36: -0.0 | L36: -0.0 | M36: -0.0 | N36: -0.0 | O36: -0.0 | P36: -0.0 | Q36: -0.0 | R36: -0.0 | S36: -0.0 | T36: -0.0 | U36: -0.0 | V36: -0.0 | W36: =+SUM(K36:V36) -> -0.1 | X36: =+V36*12 -> -0.1 | Y36: =+X36 -> -0.1
B38: EBT | D38: =+D34+D36 -> -1.3 | E38: =+E34+E36 -> -0.5 | F38: -0.7 | G38: 0.8 | H38: 0.8 | I38: -0.2 | J38: -1.2 | K38: 3.9 | L38: 0.9 | M38: 3.9 | N38: 9.7 | O38: 11.8 | P38: 7.8 | Q38: 5.5 | R38: 2.4 | S38: 2.4 | T38: 2.2 | U38: 2.5 | V38: 3.8 | W38: 56.8 | X38: 190.4 | Y38: 447.8
B40: Steuern vom Einkommen und vom Ertrag | D40: 0 | E40: 0 | F40: 0 | G40: =+IF(SUM(D38:F38)>0,SUM(D38:F38)*0.15,0) -> 0 | H40: =+IF(SUM(D38:F38)>0,SUM(D38:F38)*0.15,0) -> 0 | I40: 0 | J40: =+SUM(D40:I40) -> 0 | K40: =+IF(SUM(G38:I38)>0,SUM(G38:I38)*0.15,0) -> 0.2 | L40: =+IF(SUM(G38:I38)>0,SUM(G38:I38)*0.15,0) -> 0.2 | M40: 0 | N40: =+IF(SUM(K38:M38)>0,SUM(K38:M38)*0.15,0) -> 1.3 | O40: =+IF(SUM(K38:M38)>0,SUM(K38:M38)*0.15,0) -> 1.3 | P40: 0 | Q40: =+IF(SUM(N38:P38)>0,SUM(N38:P38)*0.15,0) -> 4.4 | R40: =+IF(SUM(N38:P38)>0,SUM(N38:P38)*0.15,0) -> 4.4 | S40: 0 | T40: =+IF(SUM(Q38:S38)>0,SUM(Q38:S38)*0.15,0) -> 1.5 | U40: =+IF(SUM(Q38:S38)>0,SUM(Q38:S38)*0.15,0) -> 1.5 | V40: 0 | W40: =+SUM(K40:V40) -> 14.9 | X40: =-IF(X38>0,X38*0.31) -> -59.0 | Y40: -138.8
B42: Ergebnis nach Steuern | D42: =+D38+D40 -> -1.3 | E42: =+E38+E40 -> -0.5 | F42: -0.7 | G42: 0.8 | H42: 0.8 | I42: -0.2 | J42: -1.2 | K42: 4.1 | L42: 1.1 | M42: 3.9 | N42: 11.1 | O42: 13.1 | P42: 7.8 | Q42: 9.9 | R42: 6.8 | S42: 2.4 | T42: 3.7 | U42: 4.1 | V42: 3.8 | W42: 71.7 | X42: 131.4 | Y42: 309.0
B44: Sonstige Steuern | D44: 0 | E44: 0 | F44: 0 | G44: 0 | H44: 0 | I44: 0 | J44: =+SUM(D44:I44) -> 0 | K44: 0 | L44: 0 | M44: 0 | N44: 0 | O44: 0 | P44: 0 | Q44: 0 | R44: 0 | S44: 0 | T44: 0 | U44: 0 | V44: 0 | W44: =+SUM(K44:V44) -> 0 | X44: -0.3 | Y44: =+X44 -> -0.3
B46: Jahresüberschuss/-fehlbetrag | D46: =+D42+D44 -> -1.3 | E46: =+E42+E44 -> -0.5 | F46: -0.7 | G46: 0.8 | H46: 0.8 | I46: -0.2 | J46: -1.2 | K46: 4.1 | L46: 1.1 | M46: 3.9 | N46: 11.1 | O46: 13.1 | P46: 7.8 | Q46: 9.9 | R46: 6.8 | S46: 2.4 | T46: 3.7 | U46: 4.1 | V46: 3.8 | W46: 71.7 | X46: 131.1 | Y46: 308.8
B48: Private Lebenshaltungskosten | D48: =-Lebenshaltung!$D$39/1000 -> -3.2 | E48: =-Lebenshaltung!$D$39/1000 -> -3.2 | F48: =-Lebenshaltung!$D$39/1000 -> -3.2 | G48: =-Lebenshaltung!$D$39/1000 -> -3.2 | H48: =-Lebenshaltung!$D$39/1000 -> -3.2 | I48: =-Lebenshaltung!$D$39/1000 -> -3.2 | J48: =+SUM(D48:I48) -> -19.4 | K48: =-Lebenshaltung!$F$39/12/1000 -> -3.3 | L48: =-Lebenshaltung!$F$39/12/1000 -> -3.3 | M48: =-Lebenshaltung!$F$39/12/1000 -> -3.3 | N48: =-Lebenshaltung!$F$39/12/1000 -> -3.3 | O48: =-Lebenshaltung!$F$39/12/1000 -> -3.3 | P48: =-Lebenshaltung!$F$39/12/1000 -> -3.3 | Q48: =-Lebenshaltung!$F$39/12/1000 -> -3.3 | R48: =-Lebenshaltung!$F$39/12/1000 -> -3.3 | S48: =-Lebenshaltung!$F$39/12/1000 -> -3.3 | T48: =-Lebenshaltung!$F$39/12/1000 -> -3.3 | U48: =-Lebenshaltung!$F$39/12/1000 -> -3.3 | V48: =-Lebenshaltung!$F$39/12/1000 -> -3.3 | W48: =+SUM(K48:V48) -> -39.9 | X48: =-Lebenshaltung!$G$39/1000 -> -41.1 | Y48: =-Lebenshaltung!$G$39/1000 -> -41.1
B49: Abschreibung | D49: =-D18 -> 0.1 | E49: 0.1 | F49: 0.1 | G49: 0.1 | H49: 0.1 | I49: 0.1 | J49: 0.5 | K49: =-K18 -> 0.2 | L49: 0.2 | M49: 0.2 | N49: 0.2 | O49: 0.2 | P49: 0.2 | Q49: 0.2 | R49: 0.2 | S49: 0.2 | T49: 0.2 | U49: 0.2 | V49: 0.2 | W49: 2.2 | X49: =-X18 -> 3.8 | Y49: =-Y18 -> 5.5
B51: Über-/Unterdeckung | D51: =+D46+D48+D49 -> -4.5 | E51: =+E46+E48+E49 -> -3.7 | F51: -3.9 | G51: -2.3 | H51: -2.3 | I51: -3.3 | J51: -20.0 | K51: 1.0 | L51: -2.0 | M51: 0.8 | N51: 7.9 | O51: 10.0 | P51: 4.6 | Q51: 6.7 | R51: 3.6 | S51: -0.8 | T51: 0.6 | U51: 0.9 | V51: 0.6 | W51: 34.0 | X51: 93.8 | Y51: 273.2

Sheet Umsatz
B2: Umsatz | D2: 2023 6 Monate | E2: 2024 | F2: 2025 | G2: 2026
B3: in TEUR
B5: Software inkl. Dienstleistungen | D5: =+SUM(D6:D13) -> 0 | E5: =+SUM(E6:E9) -> 97.4 | F5: =+SUM(F6:F9) -> 532.5 | G5: 1,293.8
B6: Software | D6: =+D12*0.035*6 -> 0 | E6: =+E12*0.035*12 -> 63.0 | F6: =+F12*0.035*12 -> 420.0 | G6: 1,050.0 | H6: 35 EUR pro Lizenz pro Monat
B7: Wartung und Support | D7: =+D12*0.15*0.25 -> 0 | E7: =+E12*0.15*0.25 -> 5.6 | F7: 37.5 | G7: 93.8 | H7: 25% aller Kunden mit 150 EUR pro Lizenz pro Jahr
B8: Customizing | D8: =+D11*0.1*5 -> 0 | E8: =+E11*0.1*10 -> 10.0 | F8: =+F11*0.1*10 -> 50.0 | G8: 100.0 | H8: 10% aller Kunden mit 5 TEUR pro Jahr
B9: Musterkundenumsatz | D9: 0 | E9: =2.08333333333333*9 -> 18.8 | F9: =2.08333333333333*12 -> 25.0 | G9: =+F9*2 -> 50.0
B11: Kundenanzahl mtl. | D11: 0 | E11: 10 | F11: 50 | G11: 100
B12: Lizenzanzahl insgesamt mtl. | D12: =+D11*25 -> 0 | E12: =+E11*15 -> 150 | F12: =+F11*20 -> 1,000 | G12: =+G11*25 -> 2,500 | H12: Erst 15 Lizenzen pro Kunde, dann 25 Lizenzen pro Kunde im Schnitt
B14: Sonstige Einzellösungen | D14: =+D15+D18 -> 8.3 | E14: 71.9 | F14: 194.8 | G14: =+G15+G18 -> 315.9
B15: Kaufsoftware | D15: =+D16*50/1000*6 -> 1.5 | E15: =+E16*50/1000*12 -> 12.0 | F15: 15.0 | G15: 16.2
B16: Kundenanzahl mtl. | D16: 5 | E16: 20 | F16: 25 | G16: 27
B18: Mietsoftware (SaaS) | D18: =+D19*D20/1000*6 -> 6.8 | E18: =+E19*E20/1000*12 -> 59.9 | F18: =+F19*F20/1000*12 -> 179.8 | G18: 299.7
B19: Durchschnittspreis in EUR mtl. | D19: 7.50 | E19: 9.99 | F19: 9.99 | G19: 9.99 | H19: Preise sind üblicherweise zwischen 4.99 EUR und 49.99, wobei mit sehr großer Mehrheit die günstigste Variante gekauft werden wird.
B20: Kundenanzahl mtl. | D20: 150 | E20: 500 | F20: =+E20*3 -> 1,500 | G20: 2,500
B22: Gesamt | D22: =+D5+D14 -> 8.3 | E22: =+E5+E14 -> 169.3 | F22: =+F5+F14 -> 727.3 | G22: =+G5+G14 -> 1,609.7

Sheet Kapitalbedarf
B2: Kapitalbedarf
B3: in EUR
B5: Startinvestitionen | D5: =+SUM(D6:D9) -> 2,701
B6: Investitionen | D6: =+Investitionen!D11 -> 1 | E6: Erste 0.5 Jahre der Investitionsplanung
B7: Patent-/Lizenz-/Franchisegebühr/Markeneintragung | D7: 400 | E7: Markennamenprüfung
B8: R&D und Entwicklungsequipment | D8: 2,000 | E8: Hardware für RFID, Scanner, Terminals, …
B9: Serverkosten vor Umsatzrealisation | D9: 300 | E9: 3 Monate Serverkosten
B11: Sonstiger Kapitalbedarf | D11: =+SUM(D12:D14) -> 583
B12: Gewerbeanmeldung | D12: =25.5+7.5 -> 33
B13: Anmeldung/Genehmigungen | D13: 250
B14: Eintrag ins Handelsregister | D14: 300
B15: Notar/Beratung/Rechtsanwalt | D15: 0
B17: Gesamt | D17: =+D5+D11 -> 3,284

Sheet Personalplanung
B2: Investitionen | D2: 2023 6 Monate | E2: 2024 | F2: 2025 | G2: 2026
B3: in EUR
B5: Management (Privatentnahme) | D5: 0 | E5: 0 | F5: 0 | G5: 0
B6: Eigentümer | D6: 1.00 | E6: 1.00 | F6: 1.00 | G6: 1.00
B8: Entwicklung & Support | D8: 0 | E8: =+E9*60*1.19 -> 35.7 | F8: =+E8*1.03+(F9-E9)*65*1.19 -> 307.5 | G8: =+F8*1.03+(G9-F9)*70*1.19 -> 608.3
B9: Mitarbeiter | D9: 0 | E9: 0.50 | F9: 4.00 | G9: 7.50
B11: Vertrieb & Marketing | D11: =75*D12 -> 0 | E11: 37.50 | F11: =+E11*1.03+(F12-E12)*75*1.19 -> 83.3 | G11: =+F11*1.03+(G12-F12)*75*1.19 -> 264.2
B12: Mitarbeiter | D12: 0 | E12: 0.50 | F12: 1.00 | G12: 3.00
B14: Buchhaltung | D14: 0 | E14: =+E15*70*1.19 -> 0 | F14: =+E14*1.03+(F15-E15)*70*1.19 -> 41.7 | G14: =+F14*1.03+(G15-F15)*70*1.19 -> 84.5
B15: Mitarbeiter | D15: 0 | E15: 0 | F15: 0.50 | G15: 1.00
B17: Gesamt | D17: =+D5+D8+D11+D14 -> 0 | E17: =+E5+E8+E11+E14 -> 73.2 | F17: 432.4 | G17: 957.1
B18: Mitarbeiter (exkl. Eigentümer) | D18: =+D9+D12+D15 -> 0 | E18: =+E9+E12+E15 -> 1.00 | F18: 5.50 | G18: 11.50

Sheet Liquidität
B2: Liquiditätsplanung | D2: 7.23 | E2: 8.23 | F2: 9.23 | G2: 10.23 | H2: 11.23 | I2: 12.23 | J2: 2023 6 Monate | K2: 1.24 | L2: 2.24 | M2: 3.24 | N2: 4.24 | O2: 5.24 | P2: 6.24 | Q2: 7.24 | R2: 8.24 | S2: 9.24 | T2: 10.24 | U2: 11.24 | V2: 12.24 | W2: 2024 | X2: 2025 | Y2: 2026
B3: in TEUR
B5: Anfangsbestand | D5: 0 | E5: =+D25 -> 1.1 | F5: =+E25 -> 1.1 | G5: 0.9 | H5: 1.8 | I5: 2.9 | J5: =+D5 -> 0 | K5: =+J25 -> 3.1 | L5: 3.9 | M5: 2.0 | N5: 3.2 | O5: 11.5 | P5: 23.6 | Q5: 29.6 | R5: 36.1 | S5: 40.5 | T5: 40.3 | U5: 40.0 | V5: 41.5 | W5: =+J25 -> 3.1 | X5: =+W25 -> 42.9 | Y5: 137.5
B7: Liquiditätszugang | D7: =+SUM(D8:D11) -> 5.5 | E7: =+SUM(E8:E11) -> 0.8 | F7: =+SUM(F8:F11) -> 1.8 | G7: 2.8 | H7: 2.8 | I7: =+SUM(I8:I11) -> 2.8 | J7: =+SUM(J8:J11) -> 16.4 | K7: 6.8 | L7: =+SUM(L8:L11) -> 6.8 | M7: =+SUM(M8:M11) -> 6.8 | N7: =+SUM(N8:N11) -> 14.5 | O7: =+SUM(O8:O11) -> 17.1 | P7: =+SUM(P8:P11) -> 19.7 | Q7: =+SUM(Q8:Q11) -> 21.2 | R7: =+SUM(R8:R11) -> 21.2 | S7: =+SUM(S8:S11) -> 21.2 | T7: =+SUM(T8:T11) -> 21.2 | U7: =+SUM(U8:U11) -> 21.6 | V7: =+SUM(V8:V11) -> 23.2 | W7: =+SUM(W8:W11) -> 201.5 | X7: =+SUM(X8:X11) -> 865.5 | Y7: =+SUM(Y8:Y11) -> 1,915.5
B8: Privateinlagen | D8: 5.0 | E8: 0 | F8: 0 | G8: 0 | H8: 0 | I8: 0 | J8: =+SUM(D8:I8) -> 5.0 | K8: 0 | L8: 0 | M8: 0 | N8: 0 | O8: 0 | P8: 0 | Q8: 0 | R8: 0 | S8: 0 | T8: 0 | U8: 0 | V8: 0 | W8: =+SUM(K8:V8) -> 0 | X8: 0 | Y8: 0
B9: Forderungen aus LuL | D9: =+GuV!D5*1.19 -> 0.2 | E9: =+GuV!E5*1.19 -> 0.5 | F9: =+GuV!F5*1.19 -> 1.5 | G9: =+GuV!G5*1.19 -> 2.5 | H9: =+GuV!H5*1.19 -> 2.5 | I9: =+GuV!I5*1.19 -> 2.5 | J9: 9.6 | K9: =+GuV!K5*1.19 -> 6.8 | L9: =+GuV!L5*1.19 -> 6.8 | M9: =+GuV!M5*1.19 -> 6.8 | N9: =+GuV!N5*1.19 -> 14.5 | O9: =+GuV!O5*1.19 -> 17.1 | P9: =+GuV!P5*1.19 -> 19.7 | Q9: =+GuV!Q5*1.19 -> 21.2 | R9: =+GuV!R5*1.19 -> 21.2 | S9: =+GuV!S5*1.19 -> 21.2 | T9: =+GuV!T5*1.19 -> 21.2 | U9: =+GuV!U5*1.19 -> 21.6 | V9: =+GuV!V5*1.19 -> 23.2 | W9: =+SUM(K9:V9) -> 201.5 | X9: =+GuV!X5*1.19 -> 865.5 | Y9: =+GuV!Y5*1.19 -> 1,915.5
B10: sonstige Einnahmen1 | D10: 0.3 | E10: 0.3 | F10: 0.3 | G10: 0.3 | H10: 0.3 | I10: 0.3 | J10: 1.8 | K10: 0 | L10: 0 | M10: 0 | N10: 0 | O10: 0 | P10: 0 | Q10: 0 | R10: 0 | S10: 0 | T10: 0 | U10: 0 | V10: 0 | W10: =+SUM(K10:V10) -> 0 | X10: 0 | Y10: 0
B11: Darlehen | D11: 0 | E11: 0 | F11: 0 | G11: 0 | H11: 0 | I11: 0 | J11: 0 | K11: 0 | L11: 0 | M11: 0 | N11: 0 | O11: 0 | P11: 0 | Q11: 0 | R11: 0 | S11: 0 | T11: 0 | U11: 0 | V11: 0 | W11: 0 | X11: 0 | Y11: 0
B13: Liquiditätsabgang | D13: =+SUM(D14:D21) -> -4.4 | E13: -0.8 | F13: -1.9 | G13: -1.9 | H13: -1.6 | I13: -2.6 | J13: -13.3 | K13: =+SUM(K14:K21) -> -6.0 | L13: -8.8 | M13: -5.6 | N13: -6.3 | O13: -5.0 | P13: -13.8 | Q13: -14.7 | R13: -16.8 | S13: -21.4 | T13: -21.5 | U13: -20.1 | V13: -21.7 | W13: -161.7 | X13: =+SUM(X14:X21) -> -770.9 | Y13: =+SUM(Y14:Y21) -> -1,642.6
B14: Investitionen | D14: =-(Kapitalbedarf!D17-Kapitalbedarf!D9-Kapitalbedarf!D6)/1000 -> -3.0 | E14: 0 | F14: 0 | G14: =-Investitionen!D11 -> -0.5 | H14: 0 | I14: 0 | J14: =+SUM(D14:I14) -> -3.5 | K14: =-Investitionen!$E$11/4 -> -1.4 | L14: 0 | M14: 0 | N14: =-Investitionen!$E$11/4 -> -1.4 | O14: 0 | P14: 0 | Q14: =-Investitionen!$E$11/4 -> -1.4 | R14: 0 | S14: 0 | T14: =-Investitionen!$E$11/4 -> -1.4 | U14: 0 | V14: 0 | W14: =+SUM(K14:V14) -> -5.5 | X14: =-Investitionen!F11 -> -5.5 | Y14: =-Investitionen!G11 -> -5.5
B15: Wareneinsatz | D15: =+GuV!D9 -> -0.1 | E15: =+GuV!E9 -> -0.1 | F15: =+GuV!F9 -> -0.1 | G15: =+GuV!G9 -> -0.2 | H15: =+GuV!H9 -> -0.2 | I15: =+GuV!I9 -> -0.2 | J15: -0.9 | K15: =+GuV!K9 -> -0.4 | L15: =+GuV!L9 -> -0.4 | M15: =+GuV!M9 -> -0.4 | N15: =+GuV!N9 -> -0.6 | O15: =+GuV!O9 -> -0.6 | P15: =+GuV!P9 -> -0.6 | Q15: =+GuV!Q9 -> -0.8 | R15: =+GuV!R9 -> -0.8 | S15: =+GuV!S9 -> -0.8 | T15: =+GuV!T9 -> -1.0 | U15: =+GuV!U9 -> -1.0 | V15: =+GuV!V9 -> -1.0 | W15: =+SUM(K15:V15) -> -8.8 | X15: =+GuV!X9 -> -25.1 | Y15: =+GuV!Y9 -> -50.2
B16: Personalkosten | D16: =+GuV!D13 -> 0 | E16: =+GuV!E13 -> 0 | F16: =+GuV!F13 -> 0 | G16: =+GuV!G13 -> 0 | H16: =+GuV!H13 -> 0 | I16: =+GuV!I13 -> 0 | J16: 0 | K16: =+GuV!K13 -> 0 | L16: =+GuV!L13 -> 0 | M16: =+GuV!M13 -> 0 | N16: =+GuV!N13 -> 0 | O16: =+GuV!O13 -> 0 | P16: =+GuV!P13 -> -6.1 | Q16: =+GuV!Q13 -> -6.1 | R16: =+GuV!R13 -> -12.2 | S16: =+GuV!S13 -> -12.2 | T16: =+GuV!T13 -> -12.2 | U16: =+GuV!U13 -> -12.2 | V16: =+GuV!V13 -> -12.2 | W16: =+SUM(K16:V16) -> -73.2 | X16: =+GuV!X13 -> -432.4 | Y16: =+GuV!Y13 -> -957.1
B17: SBA (exkl. Afa) | D17: =+GuV!D17-GuV!D18 -> -1.3 | E17: =+GuV!E17-GuV!E18 -> -0.8 | F17: =+GuV!F17-GuV!F18 -> -1.8 | G17: =+GuV!G17-GuV!G18 -> -1.0 | H17: =+GuV!H17-GuV!H18 -> -1.0 | I17: =+GuV!I17-GuV!I18 -> -2.0 | J17: -7.7 | K17: =+GuV!K17-GuV!K18 -> -1.2 | L17: =+GuV!L17-GuV!L18 -> -4.2 | M17: =+GuV!M17-GuV!M18 -> -1.2 | N17: =+GuV!N17-GuV!N18 -> -1.6 | O17: =+GuV!O17-GuV!O18 -> -1.8 | P17: =+GuV!P17-GuV!P18 -> -1.9 | Q17: =+GuV!Q17-GuV!Q18 -> -5.2 | R17: =+GuV!R17-GuV!R18 -> -2.2 | S17: =+GuV!S17-GuV!S18 -> -2.2 | T17: =+GuV!T17-GuV!T18 -> -2.2 | U17: =+GuV!U17-GuV!U18 -> -2.2 | V17: =+GuV!V17-GuV!V18 -> -2.3 | W17: -28.3 | X17: =+GuV!X17-GuV!X18 -> -75.5 | Y17: =+GuV!Y17-GuV!Y18 -> -148.9
B18: Zinsen | D18: =+GuV!D36 -> -0.0 | E18: =+GuV!E36 -> -0.0 | F18: =+GuV!F36 -> -0.0 | G18: =+GuV!G36 -> -0.0 | H18: =+GuV!H36 -> -0.0 | I18: =+GuV!I36 -> -0.0 | J18: -0.1 | K18: =+GuV!K36 -> -0.0 | L18: =+GuV!L36 -> -0.0 | M18: =+GuV!M36 -> -0.0 | N18: =+GuV!N36 -> -0.0 | O18: =+GuV!O36 -> -0.0 | P18: =+GuV!P36 -> -0.0 | Q18: =+GuV!Q36 -> -0.0 | R18: =+GuV!R36 -> -0.0 | S18: =+GuV!S36 -> -0.0 | T18: =+GuV!T36 -> -0.0 | U18: =+GuV!U36 -> -0.0 | V18: =+GuV!V36 -> -0.0 | W18: -0.1 | X18: =+GuV!X36 -> -0.1 | Y18: =+GuV!Y36 -> -0.1
B19: Darlehen | D19: 0 | E19: 0 | F19: 0 | G19: 0 | H19: 0 | I19: 0 | J19: 0 | K19: 0 | L19: 0 | M19: 0 | N19: 0 | O19: 0 | P19: 0 | Q19: 0 | R19: 0 | S19: 0 | T19: 0 | U19: 0 | V19: 0 | W19: 0 | X19: 0 | Y19: 0
B20: Steuern | D20: =+GuV!D44+GuV!D40 -> 0 | E20: =+GuV!E44+GuV!E40+GuV!D5*0.19 -> 0.0 | F20: =+GuV!F44+GuV!F40-GuV!E5*0.19 -> -0.1 | G20: =+GuV!G44+GuV!G40-GuV!F5*0.19 -> -0.2 | H20: =+GuV!H44+GuV!H40-GuV!G5*0.19 -> -0.4 | I20: =+GuV!I44+GuV!I40-GuV!H5*0.19 -> -0.4 | J20: -1.1 | K20: =+GuV!K44+GuV!K40-GuV!I5*0.19 -> -0.2 | L20: =+GuV!L44+GuV!L40-GuV!J5*0.19 -> -1.3 | M20: =+GuV!M44+GuV!M40-GuV!K5*0.19 -> -1.1 | N20: =+GuV!N44+GuV!N40-GuV!L5*0.19 -> 0.2 | O20: =+GuV!O44+GuV!O40-GuV!M5*0.19 -> 0.2 | P20: =+GuV!P44+GuV!P40-GuV!N5*0.19 -> -2.3 | Q20: =+GuV!Q44+GuV!Q40-GuV!O5*0.19 -> 1.7 | R20: =+GuV!R44+GuV!R40-GuV!P5*0.19 -> 1.3 | S20: =+GuV!S44+GuV!S40-GuV!Q5*0.19 -> -3.4 | T20: =+GuV!T44+GuV!T40-GuV!R5*0.19 -> -1.8 | U20: =+GuV!U44+GuV!U40-GuV!S5*0.19 -> -1.8 | V20: =+GuV!V44+GuV!V40-GuV!T5*0.19 -> -3.4 | W20: -12.0 | X20: =+GuV!X44+GuV!X40-GuV!X5*0.19 -> -197.5 | Y20: =+GuV!Y44+GuV!Y40-GuV!Y5*0.19 -> -444.9
B21: Privatentnahmen | D21: 0 | E21: 0 | F21: 0 | G21: 0 | H21: 0 | I21: 0 | J21: 0 | K21: =-Lebenshaltung!$F$35/12/1000 -> -3 | L21: =-Lebenshaltung!$F$35/12/1000 -> -3 | M21: =-Lebenshaltung!$F$35/12/1000 -> -3 | N21: =-Lebenshaltung!$F$35/12/1000 -> -3 | O21: =-Lebenshaltung!$F$35/12/1000 -> -3 | P21: =-Lebenshaltung!$F$35/12/1000 -> -3 | Q21: =-Lebenshaltung!$F$35/12/1000 -> -3 | R21: =-Lebenshaltung!$F$35/12/1000 -> -3 | S21: =-Lebenshaltung!$F$35/12/1000 -> -3 | T21: =-Lebenshaltung!$F$35/12/1000 -> -3 | U21: =-Lebenshaltung!$F$35/12/1000 -> -3 | V21: =-Lebenshaltung!$F$35/12/1000 -> -3 | W21: -33.8 | X21: =-Lebenshaltung!G35/1000 -> -34.8 | Y21: =-Lebenshaltung!H35/1000 -> -35.9
B23: Cashflow | D23: =+D7+D13 -> 1.1 | E23: -0.0 | F23: -0.2 | G23: 0.8 | H23: 1.2 | I23: 0.2 | J23: 3.1 | K23: =+K7+K13 -> 0.8 | L23: -2.0 | M23: 1.3 | N23: 8.3 | O23: 12.1 | P23: 6.0 | Q23: 6.5 | R23: 4.4 | S23: -0.3 | T23: -0.3 | U23: 1.5 | V23: 1.4 | W23: 39.8 | X23: =+X7+X13 -> 94.6 | Y23: =+Y7+Y13 -> 272.9
B25: Endbestand | D25: =+D5+D23 -> 1.1 | E25: 1.1 | F25: 0.9 | G25: 1.8 | H25: 2.9 | I25: 3.1 | J25: 3.1 | K25: =+K5+K23 -> 3.9 | L25: 2.0 | M25: 3.2 | N25: 11.5 | O25: 23.6 | P25: 29.6 | Q25: 36.1 | R25: 40.5 | S25: 40.3 | T25: 40.0 | U25: 41.5 | V25: 42.9 | W25: 42.9 | X25: =+X5+X23 -> 137.5 | Y25: =+Y5+Y23 -> 410.4
B27: 1 Gründerzuschuss

Sheet Investitionen
B2: Investitionen | D2: 2023 6 Monate | E2: 2024 | F2: 2025 | G2: 2026 | I2: Privatequipment | K2: Bereits vorhanden
B3: in TEUR | I3: in EUR
Q4: Barcode Scanner | R4: 150
B5: Hardware | D5: =+SUM(D6:D7) -> 0 | E5: =+SUM(E6:E7) -> 5.0 | F5: 5.0 | G5: 5.0 | I5: Hardware | K5: =+SUM(K6:K10) -> 3,100.00 | Q5: RFID System | R5: 100
B6: PCs / Laptops | E6: 5.0 | F6: 5.0 | G6: 5.0 | I6: PC | K6: 600.00 | Q6: Touchscreen Terminal | R6: 500
I7: Monitors | K7: 100.00 | Q7: PC SSD | R7: 100
B8: Büro | D8: =+SUM(D9:D10) -> 0.5 | E8: =+SUM(E9:E10) -> 0.5 | F8: =+SUM(F9:F10) -> 0.5 | G8: =+SUM(G9:G10) -> 0.5 | I8: Laptops | K8: 300.00 | Q8: GPS kit für Fuhrparksoftware | R8: 1000
B9: Einrichtung | D9: 0.5 | E9: 0.5 | F9: 0.5 | G9: 0.5 | I9: Phone | K9: 400.00
I10: Audio & Video | K10: 1,700.00
B11: Gesamt | D11: =+D5+D8 -> 0.5 | E11: =+E5+E8 -> 5.5 | F11: 5.5 | G11: 5.5
I12: Software | K12: =+SUM(K13:K15) -> 600.00
I13: Videobearbeitung | K13: 400.00
I14: Office | K14: 100.00
I15: Entwicklungstools | K15: 100.00
I17: Gesamt | K17: =+K12+K5 -> 3,700.00
I19: * Privatequipment zum Zeitwert (nicht zum Neupreis)
B24: Afa Rechner | D24: 2023 6 Monate | E24: 2024 | F24: 2025 | G24: 2026
B25: in EUR
B27: Hardware | D27: =+SUM(D28:D31) -> 0 | E27: =+SUM(E28:E31) -> 1.67 | F27: 3.33 | G27: 5.00
B28: 2023 | D28: =+D5/36*6 -> 0 | E28: =+$D$5/36*12 -> 0 | F28: =+$D$5/36*12 -> 0 | G28: =+$D$5/36*6 -> 0
B29: 2024 | E29: =+$E$5/36*12 -> 1.7 | F29: =+$E$5/36*12 -> 1.7 | G29: 1.7
B30: 2025 | F30: =+$F$5/36*12 -> 1.7 | G30: =+$F$5/36*12 -> 1.7
B31: 2026 | G31: =+$G$5/36*12 -> 1.7
B33: Büro | D33: =+SUM(D34:D37) -> 0.50 | E33: =+SUM(E34:E37) -> 0.50 | F33: 0.50 | G33: 0.50
B34: 2023 | D34: =+D9 -> 0.5
B35: 2024 | E35: =+E9 -> 0.5
B36: 2025 | F36: =+F9 -> 0.5
B37: 2026 | G37: =+G9 -> 0.5
B39: Gesamt | D39: =+D27+D33 -> 0.50 | E39: =+E27+E33 -> 2.17 | F39: =+F27+F33 -> 3.83 | G39: =+G27+G33 -> 5.50

Sheet Lebenshaltung
B2: Lebenshaltung | D2: Monat | E2: 2023 6 Monate | F2: 2024 | G2: 2025 | H2: 2026
B3: in EUR
B5: Wohnkosten | D5: =+SUM(D6:D9) -> 950 | E5: =+SUM(E6:E9) -> 5,698 | F5: 11,739 | G5: 12,091 | H5: 12,453
B6: Mietkosten incl. Heizung | D6: =+E6/6 -> 855 | E6: =(725+130)*6 -> 5,130 | F6: =+E6/6*12*1.03 -> 10,568 | G6: =+F6*1.03 -> 10,885 | H6: 11,211
B7: Strom, Wasser, Gas | D7: =+E7/6 -> 50 | E7: =0.373*800 -> 298 | F7: =+E7/6*12*1.03 -> 615 | G7: =+F7*1.03 -> 633 | H7: 652
B8: Internet | D8: 40 | E8: =39.99*6 -> 240 | F8: 494 | G8: =+F8*1.03 -> 509 | H8: 524
B9: Telefon | D9: =+E9/6 -> 5 | E9: =5*6 -> 30 | F9: 62 | G9: 64 | H9: 66
B11: Soziale Absicherung | D11: =+SUM(D12:D14) -> 896 | E11: =+SUM(E12:E14) -> 5,374 | F11: =+SUM(F12:F14) -> 11,070 | G11: =+SUM(G12:G14) -> 11,402 | H11: =+SUM(H12:H14) -> 11,744
B12: Krankenversicherung | D12: =+E12/6 -> 220 | E12: =220*6 -> 1,320 | F12: =+E12/6*12*1.03 -> 2,719 | G12: =+F12*1.03 -> 2,801 | H12: 2,885
B13: Rentenversicherung/Altersvorsorge | D13: 631 | E13: =631.47*6 -> 3,789 | F13: 7,805 | G13: =+F13*1.03 -> 8,039 | H13: 8,280
B14: Freiwillige Arbeitslosenversicherung | D14: 44 | E14: =44.14*6 -> 265 | F14: 546 | G14: =+F14*1.03 -> 562 | H14: 579
B15: Andere Versicherungen | D15: 0 | F15: 0 | G15: =+F15*1.03 -> 0 | H15: 0
B17: Sonstige Verpflichtungen | D17: =+SUM(D18:D20) -> 50 | E17: =+SUM(E18:E20) -> 300 | F17: =+SUM(F18:F20) -> 618 | G17: =+SUM(G18:G20) -> 637 | H17: =+SUM(H18:H20) -> 656
B18: Private Kredite | D18: =+E18/6 -> 0 | E18: 0 | F18: =+E18/6*12*1.03 -> 0 | G18: =+F18*1.03 -> 0 | H18: 0
B19: Bausparverträge | D19: 0 | E19: 0 | F19: 0 | G19: =+F19*1.03 -> 0 | H19: 0
B20: Sonstiges (z.B. Unterhalt) | D20: 50 | E20: =50*6 -> 300 | F20: 618 | G20: =+F20*1.03 -> 637 | H20: 656
B22: Mobilitätskosten | D22: =+SUM(D23:D25) -> 147 | E22: 880 | F22: =+SUM(F23:F25) -> 1,812 | G22: =+SUM(G23:G25) -> 1,866 | H22: 1,922
B23: Kfz-Steuer, Kfz-Versicherung | D23: =+E23/6 -> 47 | E23: =559.05/12*6 -> 280 | F23: =+E23/6*12*1.03 -> 576 | G23: =+F23*1.03 -> 593 | H23: 611
B24: Benzin, Reparatur,Pflege | D24: 100 | E24: =100*6 -> 600 | F24: 1,236 | G24: =+F24*1.03 -> 1,273 | H24: 1,311
B25: öffentliche Verkehrsmittel etc. | D25: 0 | E25: 0 | F25: 0 | G25: =+F25*1.03 -> 0 | H25: 0
B27: Lebensunterhalt | D27: =+SUM(D28:D30) -> 600 | E27: =+SUM(E28:E30) -> 3,600 | F27: =+SUM(F28:F30) -> 7,416 | G27: =+SUM(G28:G30) -> 7,638 | H27: =+SUM(H28:H30) -> 7,868
B28: Lebensmittel, Kleidung, Freizeit | D28: =+E28/6 -> 500 | E28: =500*6 -> 3,000 | F28: =+E28/6*12*1.03 -> 6,180 | G28: =+F28*1.03 -> 6,365 | H28: 6,556
B29: Hausrat, Reparaturen | D29: 50 | E29: =50*6 -> 300 | F29: 618 | G29: =+F29*1.03 -> 637 | H29: 656
B30: Bildung/Unterhaltung | D30: 50 | E30: =50*6 -> 300 | F30: 618 | G30: =+F30*1.03 -> 637 | H30: 656
B32: Rücklagen (Urlaub, Krankheit etc.) | D32: =+E32/6 -> 83 | E32: =83.3333333333333*6 -> 500 | F32: =+E32/6*12*1.03 -> 1,030 | G32: =+F32*1.03 -> 1,061 | H32: 1,093
B33: sonstige variable Kosten | D33: 10 | E33: =10*6 -> 60 | F33: 124 | G33: =+F33*1.03 -> 127 | H33: 131
B35: Summe private Ausgaben | D35: =+D5+D11+D17+D22+D27+SUM(D32:D33) -> 2,735 | E35: =+E5+E11+E17+E22+E27+SUM(E32:E33) -> 16,412 | F35: 33,808 | G35: 34,822 | H35: 35,867
B37: Einkommensteuer | D37: =+D35*0.18 -> 492 | E37: =+E35*0.18 -> 2,954 | F37: =+F35*0.18 -> 6,085 | G37: 6,268 | H37: 6,456
B39: Gesamt | D39: =+D35+D37 -> 3,228 | E39: =+E35+E37 -> 19,366 | F39: 39,893 | G39: 41,090 | H39: 42,323
B41: * Jährliche Steigerung von 3% basierend auf der Empfehlung der IHK München https://www.ihk-muenchen.de/businessplan/

Sheet Helper_BP
B2: Finanzierung
B3: Eigenkapital | C3: =1-C4 -> 91%
B4: Gründerzuschuss | C4: =-0.3*6/GuV!J51 -> 9%
B18: Zukunftsperspektive
B19: J1 | C19: =+GuV!J51 -> -20
B20: J2 | C20: =+GuV!W51 -> 34
B21: J3 | C21: =+GuV!X51 -> 94
B22: J4 | C22: =+GuV!Y51 -> 273

Sheet GuV_BP
B2: GuV | D2: 2023 6 Monate | E2: 2024 | F2: 2025 | G2: 2026
B3: in TEUR
B5: Umsatzerlöse | D5: =+GuV!J5 -> 8 | E5: =+GuV!W5 -> 169 | F5: =+GuV!X5 -> 727 | G5: =+GuV!Y5 -> 1,610
B6: Software inkl. Dienstleistungen | D6: =+GuV!J6 -> 0 | E6: =+GuV!W6 -> 97 | F6: =+GuV!X6 -> 533 | G6: =+GuV!Y6 -> 1,294
B7: Sonstige Einzellösungen | D7: =+GuV!J7 -> 8 | E7: =+GuV!W7 -> 72 | F7: =+GuV!X7 -> 195 | G7: =+GuV!Y7 -> 316
B9: Wareneinsatz | D9: =+GuV!J9 -> -1 | E9: =+GuV!W9 -> -9 | F9: =+GuV!X9 -> -25 | G9: =+GuV!Y9 -> -50
B11: Rohertrag | D11: =+SUM(D12:D13) -> 0 | E11: -73 | F11: -432 | G11: -957
B13: Personalaufwand | D13: 0 | E13: -73 | F13: -432 | G13: -957
B14: Löhne und Gehälter | D14: =+GuV!J14 -> 0 | E14: =+GuV!W14 -> -62 | F14: =+GuV!X14 -> -363 | G14: =+GuV!Y14 -> -804
B15: Soziale Abgaben | D15: =+GuV!J15 -> 0 | E15: =+GuV!W15 -> -12 | F15: =+GuV!X15 -> -69 | G15: =+GuV!Y15 -> -153
B17: SBA | D17: =+GuV!J17 -> -8 | E17: =+GuV!W17 -> -30 | F17: =+GuV!X17 -> -79 | G17: =+GuV!Y17 -> -154
B18: Abschreibungen
B19: Transportkosten
B20: sonstige Vertriebskosten
B21: Raum- und Grundstücksaufwendungen
B22: Wartung, Reparaturen und Instandhaltung
B23: Versicherungen
B24: Beiträge, Abgaben, Gebühren
B25: Miete und Leasing
B26: KFZ Kosten
B27: Messe-, Werbung- und Reisekosten
B28: Betriebsbedarf
B29: sonstige Personalkosten
B30: Kommunikation
B31: Rechts-, Beratungs- und Lizenzkosten
B32: Forderungsverluste
B33: übrige sonstige betr. Aufwendungen
B34: übrige sonstige Aufwendungen
B36: EBIT | D36: =+D5+D9+D13+D17 -> -1 | E36: =+E5+E9+E13+E17 -> 57 | F36: =+F5+F9+F13+F17 -> 190 | G36: =+G5+G9+G13+G17 -> 448
B38: Finanzergebnis | D38: =+GuV!J36 -> -0 | E38: =+GuV!W36 -> -0 | F38: =+GuV!X36 -> -0 | G38: =+GuV!Y36 -> -0
B40: EBT | D40: =+D36+D38 -> -1 | E40: 57 | F40: 190 | G40: 448
B42: Steuern vom Einkommen und vom Ertrag | D42: =+GuV!J40 -> 0 | E42: =+GuV!W40 -> 15 | F42: =+GuV!X40 -> -59 | G42: =+GuV!Y40 -> -139
B44: Ergebnis nach Steuern | D44: =+D40+D42 -> -1 | E44: 72 | F44: 131 | G44: 309
B46: Sonstige Steuern | D46: =+GuV!J44 -> 0 | E46: =+GuV!W44 -> 0 | F46: =+GuV!X44 -> -0 | G46: =+GuV!Y44 -> -0
B48: Jahresüberschuss/-fehlbetrag | D48: =+D44+D46 -> -1 | E48: 72 | F48: 131 | G48: 309
B50: Private Lebenshaltungskosten | D50: =+GuV!J48 -> -19 | E50: =+GuV!W48 -> -40 | F50: =+GuV!X48 -> -41 | G50: =+GuV!Y48 -> -41
B51: Abschreibung | D51: =+GuV!J49 -> 1 | E51: =+GuV!W49 -> 2 | F51: =+GuV!X49 -> 4 | G51: =+GuV!Y49 -> 6
B53: Über-/Unterdeckung | D53: =+D48+D50+D51 -> -20 | E53: 34 | F53: 94 | G53: 273

Sheet Liquidität_BP
B2: Liquiditätsplanung | D2: 2023 6 Monate | E2: 2024 | F2: 2025 | G2: 2026
B3: in TEUR
B5: Anfangsbestand | D5: =+Liquidität!J5 -> 0 | E5: =+Liquidität!W5 -> 3.1 | F5: =+Liquidität!X5 -> 42.9 | G5: =+Liquidität!Y5 -> 137.5
B7: Liquiditätszugang | D7: =+Liquidität!J7 -> 16.4 | E7: =+Liquidität!W7 -> 201.5 | F7: =+Liquidität!X7 -> 865.5 | G7: =+Liquidität!Y7 -> 1,915.5
B8: Privateinlagen | D8: =+Liquidität!J8 -> 5.0 | E8: =+Liquidität!W8 -> 0 | F8: =+Liquidität!X8 -> 0 | G8: =+Liquidität!Y8 -> 0
B9: Forderungen aus LuL | D9: =+Liquidität!J9 -> 9.6 | E9: =+Liquidität!W9 -> 201.5 | F9: =+Liquidität!X9 -> 865.5 | G9: =+Liquidität!Y9 -> 1,915.5
B10: sonstige Einnahmen1 | D10: =+Liquidität!J10 -> 1.8 | E10: =+Liquidität!W10 -> 0 | F10: =+Liquidität!X10 -> 0 | G10: =+Liquidität!Y10 -> 0
B11: Darlehen | D11: =+Liquidität!J11 -> 0 | E11: =+Liquidität!W11 -> 0 | F11: =+Liquidität!X11 -> 0 | G11: =+Liquidität!Y11 -> 0
B13: Liquiditätsabgang | D13: =+Liquidität!J13 -> -13.3 | E13: =+Liquidität!W13 -> -161.7 | F13: =+Liquidität!X13 -> -770.9 | G13: =+Liquidität!Y13 -> -1,642.6
B14: Investitionen | D14: =+Liquidität!J14 -> -3.5 | E14: =+Liquidität!W14 -> -5.5 | F14: =+Liquidität!X14 -> -5.5 | G14: =+Liquidität!Y14 -> -5.5
B15: Wareneinsatz | D15: =+Liquidität!J15 -> -0.9 | E15: =+Liquidität!W15 -> -8.8 | F15: =+Liquidität!X15 -> -25.1 | G15: =+Liquidität!Y15 -> -50.2
B16: Personalkosten | D16: =+Liquidität!J16 -> 0 | E16: =+Liquidität!W16 -> -73.2 | F16: =+Liquidität!X16 -> -432.4 | G16: =+Liquidität!Y16 -> -957.1
B17: SBA (exkl. Afa) | D17: =+Liquidität!J17 -> -7.7 | E17: =+Liquidität!W17 -> -28.3 | F17: =+Liquidität!X17 -> -75.5 | G17: =+Liquidität!Y17 -> -148.9
B18: Zinsen | D18: =+Liquidität!J18 -> -0.1 | E18: =+Liquidität!W18 -> -0.1 | F18: =+Liquidität!X18 -> -0.1 | G18: =+Liquidität!Y18 -> -0.1
B19: Darlehen | D19: =+Liquidität!J19 -> 0 | E19: =+Liquidität!W19 -> 0 | F19: =+Liquidität!X19 -> 0 | G19: =+Liquidität!Y19 -> 0
B20: Steuern | D20: =+Liquidität!J20 -> -1.1 | E20: =+Liquidität!W20 -> -12.0 | F20: =+Liquidität!X20 -> -197.5 | G20: =+Liquidität!Y20 -> -444.9
B21: Privatentnahmen | D21: =+Liquidität!J21 -> 0 | E21: =+Liquidität!W21 -> -33.8 | F21: =+Liquidität!X21 -> -34.8 | G21: =+Liquidität!Y21 -> -35.9
B23: Cashflow | D23: =+Liquidität!J23 -> 3.1 | E23: =+Liquidität!W23 -> 39.8 | F23: =+Liquidität!X23 -> 94.6 | G23: =+Liquidität!Y23 -> 272.9
B25: Endbestand | D25: =+Liquidität!J25 -> 3.1 | E25: =+Liquidität!W25 -> 42.9 | F25: =+Liquidität!X25 -> 137.5 | G25: =+Liquidität!Y25 -> 410.4
B27: 1 Gründerzuschuss
